[Event "Late-Titled-Tuesday-Blitz-October-10-2023"]
[Site "Chess.com"]
[Date "2023.10.10"]
[Round "6"]
[White "emeli_chess"]
[Black "Chesstrainer1"]
[Result "0-1"]
[WhiteElo "2391"]
[BlackElo "2478"]
[TimeControl "180+1"]
[EndTime "15:04:04 PDT"]
[Termination "Chesstrainer1 won on time"]

1. d4 {[%clk 0:02:59.4]} 1... Nf6 {[%clk 0:02:58.7]} 2. c4 {[%clk 0:02:59.4]}
2... e6 {[%clk 0:02:58.8]} 3. Nc3 {[%clk 0:02:59.6]} 3... Bb4 {[%clk 0:02:58.2]}
4. Qc2 {[%clk 0:02:59.9]} 4... O-O {[%clk 0:02:52.1]} 5. e4 {[%clk 0:02:59.4]}
5... d5 {[%clk 0:02:50.1]} 6. e5 {[%clk 0:02:59.3]} 6... Ne4 {[%clk 0:02:50.6]}
7. Bd3 {[%clk 0:02:59.5]} 7... c5 {[%clk 0:02:47.4]} 8. Nf3 {[%clk 0:02:59.5]}
8... cxd4 {[%clk 0:02:42.5]} 9. Nxd4 {[%clk 0:02:59.2]} 9... Nd7 {[%clk
0:02:41.1]} 10. Bf4 {[%clk 0:02:59]} 10... Qh4 {[%clk 0:02:34.8]} 11. g3 {[%clk
0:02:58.8]} 11... Qh5 {[%clk 0:02:22.4]} 12. O-O {[%clk 0:02:57.9]} 12... Bxc3
{[%clk 0:02:06.4]} 13. bxc3 {[%clk 0:02:57.4]} 13... Nxe5 {[%clk 0:02:04.2]} 14.
Bxe4 {[%clk 0:02:19.4]} 14... dxe4 {[%clk 0:01:51.3]} 15. Qxe4 {[%clk
0:02:16.2]} 15... Ng4 {[%clk 0:01:47.1]} 16. Qg2 {[%clk 0:01:18.6]} 16... e5
{[%clk 0:01:39.3]} 17. f3 {[%clk 0:01:18.2]} 17... Qxh2+ {[%clk 0:00:28.9]} 18.
Qxh2 {[%clk 0:01:17.2]} 18... Nxh2 {[%clk 0:00:29.8]} 19. Kxh2 {[%clk
0:01:16.3]} 19... exf4 {[%clk 0:00:30]} 20. gxf4 {[%clk 0:01:11.3]} 20... Bd7
{[%clk 0:00:29.9]} 21. Rfe1 {[%clk 0:01:07.2]} 21... Rfe8 {[%clk 0:00:28.5]} 22.
Nb5 {[%clk 0:01:00.5]} 22... Kf8 {[%clk 0:00:22.5]} 23. Nd6 {[%clk 0:00:57]}
23... Rxe1 {[%clk 0:00:21.9]} 24. Rxe1 {[%clk 0:00:56.8]} 24... b6 {[%clk
0:00:19.6]} 25. Re5 {[%clk 0:00:46.2]} 25... Rd8 {[%clk 0:00:19.1]} 26. c5
{[%clk 0:00:44.9]} 26... Bc6 {[%clk 0:00:17.7]} 27. Ne4 {[%clk 0:00:41.1]} 27...
b5 {[%clk 0:00:15.3]} 28. Nd6 {[%clk 0:00:40.2]} 28... a6 {[%clk 0:00:14.3]} 29.
Kg3 {[%clk 0:00:39.4]} 29... f6 {[%clk 0:00:14.1]} 30. Re6 {[%clk 0:00:32.5]}
30... Bd5 {[%clk 0:00:13.4]} 31. Re3 {[%clk 0:00:30.2]} 31... Bxa2 {[%clk
0:00:12.8]} 32. f5 {[%clk 0:00:28.1]} 32... Bd5 {[%clk 0:00:12.6]} 33. Rd3
{[%clk 0:00:17.2]} 33... Bc6 {[%clk 0:00:12.6]} 34. Rd2 {[%clk 0:00:15.7]} 34...
a5 {[%clk 0:00:12.9]} 35. Rb2 {[%clk 0:00:15.9]} 35... a4 {[%clk 0:00:12.3]} 36.
Nxb5 {[%clk 0:00:15]} 36... Rb8 {[%clk 0:00:12.5]} 37. c4 {[%clk 0:00:15]} 37...
a3 {[%clk 0:00:11.2]} 38. Ra2 {[%clk 0:00:15]} 38... Bxb5 {[%clk 0:00:11.5]} 39.
cxb5 {[%clk 0:00:14.7]} 39... Rxb5 {[%clk 0:00:12.4]} 40. c6 {[%clk 0:00:13.9]}
40... Rc5 {[%clk 0:00:09.9]} 41. Rxa3 {[%clk 0:00:12.7]} 41... Rxc6 {[%clk
0:00:10.3]} 42. Kg4 {[%clk 0:00:12.2]} 42... Rc4+ {[%clk 0:00:09.5]} 43. f4
{[%clk 0:00:12.3]} 43... Rc7 {[%clk 0:00:10.1]} 44. Ra6 {[%clk 0:00:12.3]} 44...
Kf7 {[%clk 0:00:10.4]} 45. Rb6 {[%clk 0:00:12.4]} 45... Rd7 {[%clk 0:00:10.6]}
46. Ra6 {[%clk 0:00:12.6]} 46... Rc7 {[%clk 0:00:11.1]} 47. Rb6 {[%clk
0:00:12.9]} 47... Rd7 {[%clk 0:00:10.2]} 48. Ra6 {[%clk 0:00:12.9]} 48... g6
{[%clk 0:00:10.3]} 49. fxg6+ {[%clk 0:00:11.7]} 49... hxg6 {[%clk 0:00:10.5]}
50. Rb6 {[%clk 0:00:12.1]} 50... Kg7 {[%clk 0:00:10.4]} 51. Ra6 {[%clk
0:00:11.9]} 51... Rd1 {[%clk 0:00:10.4]} 52. Kg3 {[%clk 0:00:10.1]} 52... Rg1+
{[%clk 0:00:10.2]} 53. Kf3 {[%clk 0:00:10.3]} 53... Rf1+ {[%clk 0:00:10.2]} 54.
Kg4 {[%clk 0:00:10.7]} 54... f5+ {[%clk 0:00:10]} 55. Kg3 {[%clk 0:00:09.6]}
55... Rg1+ {[%clk 0:00:10.1]} 56. Kf3 {[%clk 0:00:09.6]} 56... Rb1 {[%clk
0:00:10]} 57. Kg3 {[%clk 0:00:09.3]} 57... Rb3+ {[%clk 0:00:09.7]} 58. Kf2
{[%clk 0:00:09.1]} 58... Kh6 {[%clk 0:00:08.9]} 59. Rc6 {[%clk 0:00:09.1]} 59...
Kh5 {[%clk 0:00:08.9]} 60. Ra6 {[%clk 0:00:09.1]} 60... Rb4 {[%clk 0:00:06.3]}
61. Kf3 {[%clk 0:00:08.6]} 61... Rb3+ {[%clk 0:00:06.7]} 62. Kf2 {[%clk
0:00:08.8]} 62... Rc3 {[%clk 0:00:06]} 63. Rb6 {[%clk 0:00:08.3]} 63... Rc4
{[%clk 0:00:06]} 64. Kf3 {[%clk 0:00:07.6]} 64... Rc3+ {[%clk 0:00:06.4]} 65.
Kf2 {[%clk 0:00:07.9]} 65... Kg4 {[%clk 0:00:06.1]} 66. Rxg6+ {[%clk 0:00:07.6]}
66... Kxf4 {[%clk 0:00:06.7]} 67. Rg8 {[%clk 0:00:06.6]} 67... Rc2+ {[%clk
0:00:07.1]} 68. Ke1 {[%clk 0:00:06.4]} 68... Kf3 {[%clk 0:00:07.3]} 69. Ra8
{[%clk 0:00:05]} 69... f4 {[%clk 0:00:06]} 70. Ra3+ {[%clk 0:00:04.4]} 70... Kg2
{[%clk 0:00:06.1]} 71. Kd1 {[%clk 0:00:01.7]} 71... Rb2 {[%clk 0:00:05.9]} 0-1

[Event "Late-Titled-Tuesday-Blitz-October-10-2023"]
[Site "Chess.com"]
[Date "2023.10.10"]
[Round "6"]
[White "Firouzja2003"]
[Black "AsadliVugar"]
[Result "1-0"]
[WhiteElo "3065"]
[BlackElo "2863"]
[TimeControl "180+1"]
[EndTime "15:04:08 PDT"]
[Termination "Firouzja2003 won by resignation"]

1. e4 {[%clk 0:03:00.9]} 1... c5 {[%clk 0:03:00.2]} 2. Nf3 {[%clk 0:03:00.9]}
2... Nc6 {[%clk 0:03:00.6]} 3. Bb5 {[%clk 0:03:00.4]} 3... e6 {[%clk 0:03:00.7]}
4. O-O {[%clk 0:02:58.1]} 4... Nge7 {[%clk 0:03:00.4]} 5. Re1 {[%clk 0:02:58.5]}
5... a6 {[%clk 0:02:59]} 6. Bf1 {[%clk 0:02:59.1]} 6... d5 {[%clk 0:02:59.4]} 7.
d3 {[%clk 0:02:59.4]} 7... d4 {[%clk 0:02:57.2]} 8. e5 {[%clk 0:02:53.7]} 8...
Ng6 {[%clk 0:02:54.2]} 9. c3 {[%clk 0:02:44.3]} 9... Be7 {[%clk 0:02:41.7]} 10.
g3 {[%clk 0:02:36.3]} 10... O-O {[%clk 0:02:41.6]} 11. a4 {[%clk 0:02:28.4]}
11... Qc7 {[%clk 0:02:37.9]} 12. Qe2 {[%clk 0:02:27.6]} 12... f6 {[%clk
0:02:30.1]} 13. exf6 {[%clk 0:02:25.4]} 13... gxf6 {[%clk 0:02:25.1]} 14. Bh6
{[%clk 0:02:22.3]} 14... Rf7 {[%clk 0:02:24.8]} 15. h4 {[%clk 0:01:48]} 15... e5
{[%clk 0:02:20.2]} 16. h5 {[%clk 0:01:47.4]} 16... Nf8 {[%clk 0:02:18.3]} 17.
Nfd2 {[%clk 0:01:47.6]} 17... Be6 {[%clk 0:02:07.1]} 18. Bg2 {[%clk 0:01:47.6]}
18... Nd7 {[%clk 0:02:01.2]} 19. Na3 {[%clk 0:01:45.6]} 19... Kh8 {[%clk
0:01:59.5]} 20. Nac4 {[%clk 0:01:34.2]} 20... Rg8 {[%clk 0:01:59]} 21. a5 {[%clk
0:01:33.3]} 21... Qc8 {[%clk 0:01:42]} 22. Ne4 {[%clk 0:01:29.2]} 22... Bxc4
{[%clk 0:01:32.9]} 23. dxc4 {[%clk 0:01:29.3]} 23... f5 {[%clk 0:01:33]} 24. Nd2
{[%clk 0:01:07.5]} 24... e4 {[%clk 0:01:32]} 25. Bf4 {[%clk 0:01:01.6]} 25...
Nde5 {[%clk 0:01:23.4]} 26. cxd4 {[%clk 0:00:37.6]} 26... Nd3 {[%clk 0:01:13]}
27. Bh6 {[%clk 0:00:08.6]} 27... Nxd4 {[%clk 0:01:07.6]} 28. Qf1 {[%clk
0:00:06.8]} 28... Nxe1 {[%clk 0:01:03.5]} 29. Rxe1 {[%clk 0:00:06.5]} 29... Bg5
{[%clk 0:01:03.8]} 30. Bxg5 {[%clk 0:00:06.4]} 30... Rxg5 {[%clk 0:01:04.7]} 31.
Re3 {[%clk 0:00:03.5]} 31... Rxh5 {[%clk 0:00:58.8]} 32. b4 {[%clk 0:00:03.4]}
32... f4 {[%clk 0:00:43.9]} 33. gxf4 {[%clk 0:00:04.3]} 33... Rxf4 {[%clk
0:00:41.4]} 34. Nxe4 {[%clk 0:00:04.8]} 34... Re5 {[%clk 0:00:24.6]} 35. bxc5
{[%clk 0:00:04]} 35... Rexe4 {[%clk 0:00:21.6]} 36. Rxe4 {[%clk 0:00:03.9]}
36... Rxe4 {[%clk 0:00:18.4]} 37. Bxe4 {[%clk 0:00:04.8]} 37... Qg4+ {[%clk
0:00:18.7]} 38. Qg2 {[%clk 0:00:04.4]} 38... Qd1+ {[%clk 0:00:19.1]} 39. Kh2
{[%clk 0:00:04.5]} 39... Qh5+ {[%clk 0:00:19.7]} 40. Kg1 {[%clk 0:00:02.5]}
40... Qd1+ {[%clk 0:00:16.2]} 41. Kh2 {[%clk 0:00:03]} 41... Qh5+ {[%clk
0:00:16]} 42. Kg1 {[%clk 0:00:03.2]} 42... Ne2+ {[%clk 0:00:12.5]} 43. Kf1
{[%clk 0:00:03.4]} 43... Nf4 {[%clk 0:00:13.4]} 44. Qf3 {[%clk 0:00:03]} 44...
Qe5 {[%clk 0:00:14.1]} 45. Kg1 {[%clk 0:00:02.7]} 45... Qg5+ {[%clk 0:00:14.4]}
46. Kf1 {[%clk 0:00:03.1]} 46... Qe5 {[%clk 0:00:14.5]} 47. Kg1 {[%clk
0:00:03.6]} 47... Qa1+ {[%clk 0:00:15.1]} 48. Kh2 {[%clk 0:00:03.9]} 48... Qe5
{[%clk 0:00:16]} 49. Bxb7 {[%clk 0:00:02.4]} 49... Ne2+ {[%clk 0:00:15.4]} 50.
Kg2 {[%clk 0:00:02.8]} 50... Nf4+ {[%clk 0:00:16.3]} 51. Kg3 {[%clk 0:00:02.9]}
51... Ne2+ {[%clk 0:00:16.2]} 52. Kg4 {[%clk 0:00:03.2]} 52... Qg7+ {[%clk
0:00:16.5]} 53. Kh4 {[%clk 0:00:02.6]} 53... Qh6+ {[%clk 0:00:16.8]} 54. Kg4
{[%clk 0:00:03.1]} 54... Qg6+ {[%clk 0:00:17.3]} 55. Kh4 {[%clk 0:00:03.1]}
55... Qh6+ {[%clk 0:00:17.8]} 56. Kg4 {[%clk 0:00:03.2]} 56... Qg7+ {[%clk
0:00:17.9]} 57. Kh4 {[%clk 0:00:03.5]} 57... Nd4 {[%clk 0:00:13.3]} 58. Qe4
{[%clk 0:00:03.6]} 58... Qf6+ {[%clk 0:00:11.7]} 59. Kg4 {[%clk 0:00:04.1]}
59... Qg7+ {[%clk 0:00:12.2]} 60. Kh3 {[%clk 0:00:04.6]} 60... Qh6+ {[%clk
0:00:12.3]} 61. Kg2 {[%clk 0:00:05.1]} 61... Qg5+ {[%clk 0:00:12.6]} 62. Kf1
{[%clk 0:00:05]} 62... Qc1+ {[%clk 0:00:12.2]} 63. Qe1 {[%clk 0:00:04.8]} 63...
Qxc4+ {[%clk 0:00:12.4]} 64. Kg2 {[%clk 0:00:05.2]} 64... Qg8+ {[%clk
0:00:12.5]} 65. Kh1 {[%clk 0:00:05.5]} 65... Qf7 {[%clk 0:00:11.7]} 66. Bg2
{[%clk 0:00:05.7]} 66... Qh5+ {[%clk 0:00:11.6]} 67. Kg1 {[%clk 0:00:06.2]}
67... Ne2+ {[%clk 0:00:11.6]} 68. Kf1 {[%clk 0:00:06.4]} 68... Nf4 {[%clk
0:00:12.5]} 69. Qa1+ {[%clk 0:00:06.3]} 69... Kg8 {[%clk 0:00:12]} 70. Qa2+
{[%clk 0:00:06.6]} 70... Kf8 {[%clk 0:00:12.4]} 71. Qb1 {[%clk 0:00:06.4]} 71...
Qe5 {[%clk 0:00:09.7]} 72. Be4 {[%clk 0:00:05.5]} 72... Kg7 {[%clk 0:00:06.5]}
73. Qb7+ {[%clk 0:00:05.7]} 73... Kf6 {[%clk 0:00:07.2]} 74. Qxh7 {[%clk
0:00:05.7]} 74... Qa1+ {[%clk 0:00:07.1]} 75. Bb1 {[%clk 0:00:06.4]} 75... Qd4
{[%clk 0:00:06.1]} 76. Qh8+ {[%clk 0:00:06.7]} 1-0

[Event "Late-Titled-Tuesday-Blitz-October-10-2023"]
[Site "Chess.com"]
[Date "2023.10.10"]
[Round "6"]
[White "MKlose11"]
[Black "Levanzovsky"]
[Result "1-0"]
[WhiteElo "2635"]
[BlackElo "2434"]
[TimeControl "180+1"]
[EndTime "15:04:23 PDT"]
[Termination "MKlose11 won by resignation"]

1. e4 {[%clk 0:02:56.7]} 1... e5 {[%clk 0:02:58.1]} 2. Nf3 {[%clk 0:02:56.3]}
2... Nc6 {[%clk 0:02:56.9]} 3. d4 {[%clk 0:02:57.2]} 3... exd4 {[%clk
0:02:56.6]} 4. Bc4 {[%clk 0:02:57.8]} 4... Nf6 {[%clk 0:02:55.8]} 5. O-O {[%clk
0:02:57.4]} 5... Nxe4 {[%clk 0:02:55.7]} 6. Re1 {[%clk 0:02:57.8]} 6... d5
{[%clk 0:02:55.9]} 7. Bxd5 {[%clk 0:02:58.4]} 7... Qxd5 {[%clk 0:02:56.7]} 8.
Nc3 {[%clk 0:02:59.1]} 8... Qa5 {[%clk 0:02:54.4]} 9. Nxe4 {[%clk 0:02:58.6]}
9... Be6 {[%clk 0:02:54.7]} 10. Neg5 {[%clk 0:02:58.7]} 10... O-O-O {[%clk
0:02:51.7]} 11. Nxe6 {[%clk 0:02:59.6]} 11... fxe6 {[%clk 0:02:52]} 12. Rxe6
{[%clk 0:03:00.5]} 12... Bd6 {[%clk 0:02:49.9]} 13. Qe2 {[%clk 0:02:59.6]} 13...
Kd7 {[%clk 0:02:48.2]} 14. Bg5 {[%clk 0:02:55.7]} 14... Rde8 {[%clk 0:02:40.5]}
15. Re1 {[%clk 0:02:55.6]} 15... Qxe1+ {[%clk 0:02:39]} 16. Qxe1 {[%clk
0:02:56.5]} 16... Rxe6 {[%clk 0:02:39.5]} 17. Qd2 {[%clk 0:02:43.2]} 17... Rhe8
{[%clk 0:02:39.8]} 18. g3 {[%clk 0:02:43]} 18... Re2 {[%clk 0:02:37.2]} 19. Qd1
{[%clk 0:02:41.4]} 19... h6 {[%clk 0:02:34.1]} 20. Bd2 {[%clk 0:02:26.1]} 20...
Bc5 {[%clk 0:02:22.1]} 21. b4 {[%clk 0:02:03.7]} 21... Bb6 {[%clk 0:02:21.6]}
22. b5 {[%clk 0:02:00.7]} 22... Nd8 {[%clk 0:02:17.4]} 23. Nxd4 {[%clk
0:01:30.2]} 23... Bxd4 {[%clk 0:02:13.4]} 24. Be3 {[%clk 0:01:30]} 24... Rxc2
{[%clk 0:00:56.9]} 25. Qxc2 {[%clk 0:01:14.1]} 25... Bxe3 {[%clk 0:00:56.7]} 26.
fxe3 {[%clk 0:01:07.8]} 26... Re6 {[%clk 0:00:56.6]} 27. Qf5 {[%clk 0:01:04.8]}
27... a6 {[%clk 0:00:55.1]} 28. a4 {[%clk 0:01:04.6]} 28... axb5 {[%clk
0:00:55]} 29. axb5 {[%clk 0:01:05.5]} 29... Ke7 {[%clk 0:00:55.4]} 30. Kg2
{[%clk 0:01:01.9]} 30... Nf7 {[%clk 0:00:55.6]} 31. Qc5+ {[%clk 0:01:00.6]}
31... Kd7 {[%clk 0:00:55.2]} 32. Qd4+ {[%clk 0:00:57.7]} 32... Nd6 {[%clk
0:00:55.8]} 33. Qxg7+ {[%clk 0:00:57.6]} 33... Kd8 {[%clk 0:00:55.4]} 34. Qd4
{[%clk 0:00:47]} 34... Ke8 {[%clk 0:00:49.4]} 35. b6 {[%clk 0:00:46.6]} 35...
cxb6 {[%clk 0:00:48.2]} 36. Qxb6 {[%clk 0:00:45.9]} 36... Kd7 {[%clk 0:00:48.6]}
37. h4 {[%clk 0:00:43.6]} 37... Re5 {[%clk 0:00:44.7]} 38. g4 {[%clk 0:00:41]}
38... Ke6 {[%clk 0:00:44.1]} 39. Qb3+ {[%clk 0:00:39.5]} 39... Ke7 {[%clk
0:00:41.7]} 40. Qg8 {[%clk 0:00:37.9]} 40... Re6 {[%clk 0:00:38.4]} 41. Kf3
{[%clk 0:00:36.2]} 41... b5 {[%clk 0:00:38.3]} 42. g5 {[%clk 0:00:33.6]} 42...
hxg5 {[%clk 0:00:38.3]} 43. hxg5 {[%clk 0:00:34.5]} 43... b4 {[%clk 0:00:36.5]}
44. Qb8 {[%clk 0:00:32.8]} 44... Nf7 {[%clk 0:00:33.4]} 45. Qxb4+ {[%clk
0:00:31.6]} 45... Ke8 {[%clk 0:00:32.9]} 46. Qb8+ {[%clk 0:00:28]} 46... Ke7
{[%clk 0:00:33.4]} 47. Qg8 {[%clk 0:00:26.4]} 47... Rg6 {[%clk 0:00:28.5]} 48.
Qa8 {[%clk 0:00:19]} 48... Rxg5 {[%clk 0:00:28.7]} 49. e4 {[%clk 0:00:18.7]}
49... Rg6 {[%clk 0:00:24.7]} 50. Kf4 {[%clk 0:00:17.8]} 50... Rf6+ {[%clk
0:00:24.8]} 51. Ke3 {[%clk 0:00:18.1]} 51... Rd6 {[%clk 0:00:24.7]} 52. Qb7+
{[%clk 0:00:18.1]} 52... Ke6 {[%clk 0:00:24]} 53. Qb3+ {[%clk 0:00:17.8]} 53...
Ke7 {[%clk 0:00:24.2]} 54. Kf4 {[%clk 0:00:17.9]} 54... Rf6+ {[%clk 0:00:24.5]}
55. Ke3 {[%clk 0:00:18.1]} 55... Rd6 {[%clk 0:00:25.2]} 56. Qb7+ {[%clk
0:00:18.4]} 56... Ke6 {[%clk 0:00:25.5]} 57. Kf4 {[%clk 0:00:18.8]} 57... Rd7
{[%clk 0:00:24.1]} 58. Qb3+ {[%clk 0:00:16.3]} 58... Ke7 {[%clk 0:00:24.7]} 59.
e5 {[%clk 0:00:13.2]} 59... Rd4+ {[%clk 0:00:24.2]} 60. Kf5 {[%clk 0:00:13.3]}
60... Rd7 {[%clk 0:00:18.5]} 61. Qb4+ {[%clk 0:00:10.3]} 61... Ke8 {[%clk
0:00:18.9]} 62. Kf6 {[%clk 0:00:05.7]} 62... Nd8 {[%clk 0:00:15]} 63. e6 {[%clk
0:00:02.7]} 63... Rh7 {[%clk 0:00:15.2]} 64. Qb5+ {[%clk 0:00:02.1]} 64... Kf8
{[%clk 0:00:15.8]} 65. Qc5+ {[%clk 0:00:01.4]} 65... Ke8 {[%clk 0:00:16.1]} 66.
Qb5+ {[%clk 0:00:01.8]} 66... Kf8 {[%clk 0:00:16.7]} 67. Qb4+ {[%clk 0:00:02.7]}
67... Ke8 {[%clk 0:00:17.2]} 68. Qa4+ {[%clk 0:00:03]} 68... Kf8 {[%clk
0:00:17.5]} 69. Qa3+ {[%clk 0:00:03.7]} 69... Ke8 {[%clk 0:00:18.1]} 70. Qe3
{[%clk 0:00:04.4]} 70... Re7 {[%clk 0:00:17.2]} 71. Kf5 {[%clk 0:00:02.8]} 71...
Kf8 {[%clk 0:00:14.8]} 72. Qh6+ {[%clk 0:00:01.6]} 72... Ke8 {[%clk 0:00:14.9]}
73. Qg6+ {[%clk 0:00:02.4]} 73... Kf8 {[%clk 0:00:14.8]} 74. Qh6+ {[%clk
0:00:03.1]} 74... Kg8 {[%clk 0:00:15]} 75. Qf6 {[%clk 0:00:02.9]} 75... Re8
{[%clk 0:00:11.3]} 76. e7 {[%clk 0:00:02.6]} 76... Nf7 {[%clk 0:00:10.5]} 77.
Ke6 {[%clk 0:00:02.8]} 77... Nd8+ {[%clk 0:00:07.9]} 78. Kd7 {[%clk 0:00:03.1]}
78... Rf8 {[%clk 0:00:04.2]} 79. Qxf8+ {[%clk 0:00:03]} 1-0

[Event "Late-Titled-Tuesday-Blitz-October-10-2023"]
[Site "Chess.com"]
[Date "2023.10.10"]
[Round "6"]
[White "ameetghasi100"]
[Black "Gravity_Chess"]
[Result "0-1"]
[WhiteElo "2736"]
[BlackElo "2889"]
[TimeControl "180+1"]
[EndTime "15:04:29 PDT"]
[Termination "Gravity_Chess won on time"]

1. b3 {[%clk 0:03:00.9]} 1... Nf6 {[%clk 0:02:56]} 2. Bb2 {[%clk 0:03:01]} 2...
e6 {[%clk 0:02:53.3]} 3. Nf3 {[%clk 0:03:00.9]} 3... b6 {[%clk 0:02:53.2]} 4. g3
{[%clk 0:03:01.4]} 4... Bb7 {[%clk 0:02:53.7]} 5. Bg2 {[%clk 0:03:01.9]} 5... c5
{[%clk 0:02:54]} 6. O-O {[%clk 0:03:02.4]} 6... Be7 {[%clk 0:02:54.4]} 7. e3
{[%clk 0:03:03]} 7... O-O {[%clk 0:02:54.4]} 8. c4 {[%clk 0:03:02.9]} 8... d5
{[%clk 0:02:54]} 9. Qe2 {[%clk 0:03:03.3]} 9... Nc6 {[%clk 0:02:53.5]} 10. Rd1
{[%clk 0:03:01.1]} 10... Qc7 {[%clk 0:02:44]} 11. Nc3 {[%clk 0:03:00.5]} 11...
dxc4 {[%clk 0:02:42.8]} 12. bxc4 {[%clk 0:03:00.4]} 12... Rfd8 {[%clk
0:02:41.5]} 13. d3 {[%clk 0:03:00.7]} 13... Rac8 {[%clk 0:02:32.2]} 14. Ne1
{[%clk 0:02:53.8]} 14... Nb4 {[%clk 0:02:29.3]} 15. Bxb7 {[%clk 0:02:49.8]}
15... Qxb7 {[%clk 0:02:30.2]} 16. a3 {[%clk 0:02:48.3]} 16... Nc6 {[%clk
0:02:30.5]} 17. Rab1 {[%clk 0:02:48.8]} 17... Rd7 {[%clk 0:02:19.7]} 18. f4
{[%clk 0:02:46.3]} 18... Rcd8 {[%clk 0:02:15.2]} 19. g4 {[%clk 0:02:46.4]} 19...
h6 {[%clk 0:01:50.6]} 20. h4 {[%clk 0:02:40.4]} 20... Nh7 {[%clk 0:01:23.8]} 21.
g5 {[%clk 0:02:39.9]} 21... hxg5 {[%clk 0:01:24.7]} 22. hxg5 {[%clk 0:02:32.1]}
22... e5 {[%clk 0:01:14]} 23. Nd5 {[%clk 0:02:01.5]} 23... exf4 {[%clk
0:01:13.4]} 24. exf4 {[%clk 0:02:01]} 24... Bf8 {[%clk 0:01:13.7]} 25. Qe4
{[%clk 0:01:47.4]} 25... Ne7 {[%clk 0:01:08.9]} 26. Nxe7+ {[%clk 0:01:47.3]}
26... Rxe7 {[%clk 0:01:09.2]} 27. Qxb7 {[%clk 0:01:47.2]} 27... Rxb7 {[%clk
0:01:09.4]} 28. Nf3 {[%clk 0:01:47.5]} 28... Bd6 {[%clk 0:01:03.7]} 29. Be5
{[%clk 0:01:23.4]} 29... Bxe5 {[%clk 0:00:57]} 30. Nxe5 {[%clk 0:01:24.3]} 30...
f6 {[%clk 0:00:56.7]} 31. gxf6 {[%clk 0:01:18.1]} 31... gxf6 {[%clk 0:00:57.6]}
32. Nf3 {[%clk 0:01:18.6]} 32... Rg7+ {[%clk 0:00:54.3]} 33. Kf2 {[%clk
0:01:18]} 33... Nf8 {[%clk 0:00:55.1]} 34. f5 {[%clk 0:01:13.6]} 34... Kf7
{[%clk 0:00:47.9]} 35. d4 {[%clk 0:01:08.2]} 35... cxd4 {[%clk 0:00:47.3]} 36.
Rxd4 {[%clk 0:01:07.9]} 36... Rxd4 {[%clk 0:00:46.2]} 37. Nxd4 {[%clk
0:01:08.8]} 37... Rg4 {[%clk 0:00:46.6]} 38. Ke3 {[%clk 0:01:03.1]} 38... Nd7
{[%clk 0:00:45.8]} 39. Rh1 {[%clk 0:01:02.9]} 39... Ne5 {[%clk 0:00:25.8]} 40.
Rh7+ {[%clk 0:01:02]} 40... Ke8 {[%clk 0:00:26]} 41. Nb5 {[%clk 0:00:48.6]}
41... Nxc4+ {[%clk 0:00:25.9]} 42. Kf3 {[%clk 0:00:43]} 42... Ne5+ {[%clk
0:00:25.8]} 43. Ke3 {[%clk 0:00:43.6]} 43... Nc4+ {[%clk 0:00:26.2]} 44. Kf3
{[%clk 0:00:43.8]} 44... Ne5+ {[%clk 0:00:26.7]} 45. Ke2 {[%clk 0:00:28.1]}
45... a6 {[%clk 0:00:24.5]} 46. Nc7+ {[%clk 0:00:23.8]} 46... Kd8 {[%clk
0:00:24.7]} 47. Nd5 {[%clk 0:00:18.5]} 47... Rg5 {[%clk 0:00:15.1]} 48. Rh8+
{[%clk 0:00:18.4]} 48... Kd7 {[%clk 0:00:14.4]} 49. Nxf6+ {[%clk 0:00:10.5]}
49... Kc6 {[%clk 0:00:14.3]} 50. Rh6 {[%clk 0:00:05.4]} 50... Rxf5 {[%clk
0:00:14.1]} 51. Ne4+ {[%clk 0:00:04.5]} 51... Kc7 {[%clk 0:00:08.7]} 52. Nd6
{[%clk 0:00:04.1]} 52... Rf4 {[%clk 0:00:05.9]} 53. Re6 {[%clk 0:00:03.4]} 53...
Nd7 {[%clk 0:00:04.5]} 54. Ne8+ {[%clk 0:00:03.4]} 54... Kd8 {[%clk 0:00:05.1]}
55. Nd6 {[%clk 0:00:03.8]} 55... Ra4 {[%clk 0:00:04.6]} 56. Re3 {[%clk
0:00:03.8]} 56... b5 {[%clk 0:00:04.3]} 57. Kd2 {[%clk 0:00:04.1]} 57... Kc7
{[%clk 0:00:04.8]} 58. Ne4 {[%clk 0:00:03.9]} 58... Nb6 {[%clk 0:00:03.8]} 59.
Rc3+ {[%clk 0:00:03.1]} 59... Nc4+ {[%clk 0:00:04.3]} 60. Kd3 {[%clk 0:00:03]}
60... Rxa3 {[%clk 0:00:04.9]} 61. Nc5 {[%clk 0:00:03.1]} 61... Rxc3+ {[%clk
0:00:05.3]} 62. Kxc3 {[%clk 0:00:04]} 62... Kb6 {[%clk 0:00:06.1]} 63. Nd7+
{[%clk 0:00:04.6]} 63... Ka5 {[%clk 0:00:06.4]} 64. Nc5 {[%clk 0:00:04.9]} 64...
Nd6 {[%clk 0:00:06.4]} 65. Kd4 {[%clk 0:00:04.7]} 65... Kb6 {[%clk 0:00:06.6]}
66. Kd5 {[%clk 0:00:04.9]} 66... Nb7 {[%clk 0:00:04.4]} 67. Nd7+ {[%clk
0:00:05.1]} 67... Kc7 {[%clk 0:00:05]} 68. Ne5 {[%clk 0:00:05.7]} 68... a5
{[%clk 0:00:03.2]} 69. Nc6 {[%clk 0:00:06.1]} 69... Kb6 {[%clk 0:00:03.3]} 70.
Nd4 {[%clk 0:00:06]} 70... a4 {[%clk 0:00:03.5]} 71. Ke4 {[%clk 0:00:05.5]}
71... Ka5 {[%clk 0:00:03]} 72. Kd3 {[%clk 0:00:05.4]} 72... Nc5+ {[%clk
0:00:03.6]} 73. Kc3 {[%clk 0:00:05.3]} 73... b4+ {[%clk 0:00:04.1]} 74. Kc4
{[%clk 0:00:05.8]} 74... b3 {[%clk 0:00:04.6]} 75. Ne2 {[%clk 0:00:03.9]} 75...
b2 {[%clk 0:00:04.2]} 76. Nc3 {[%clk 0:00:04.2]} 76... a3 {[%clk 0:00:04.9]} 77.
Kxc5 {[%clk 0:00:02.1]} 77... a2 {[%clk 0:00:04.8]} 78. Nxa2 {[%clk 0:00:02.1]}
78... b1=Q {[%clk 0:00:05.1]} 79. Nc3 {[%clk 0:00:03]} 79... Qb4+ {[%clk
0:00:05.6]} 0-1